Cogmind - Beta 12 @@@ ROGUE MODE // 2023.04.03 @ 14:40:21 Player: ZLD1 Result: Destroyed by as-96513 with Assembled Blade Performance ------------- Evolutions (0) 0 Regions Visited (2) 400 Robots Destroyed (5) 25 Value Destroyed (50) 50 Prototype IDs (0) 0 Alien Tech Used (0) 0 Bonus (0) 0 TOTAL SCORE: 475 Bonus ------- None Cogmind --------- Core Integrity 0/250 Matter 275/300 Energy 100/100 System Corruption 0% Temperature Cool (0) Movement Core (100) Ox1 Location -10/Mines Parts ------- > --- POWER (1) -------- (None) > --- PROPULSION (2) --- (None) > --- UTILITY (2) ------ Small Storage Unit > --- WEAPON (2) ------- (None) > --- INVENTORY (8) ---- Ion Engine Improved Terrain Scanner Tractor Beam Improved Light Cannon Improved Light Cannon Heavy Hammer Heavy Hammer Peak State ------------ > --- POWER ------------ Ion Engine > --- PROPULSION ------- Aluminum Leg Aluminum Leg > --- UTILITY ---------- Small Storage Unit Seismic Detector > --- WEAPON ----------- Assault Rifle Assault Rifle > --- INVENTORY -------- Ion Engine Light Ion Engine Improved Terrain Scanner Tractor Beam Light Assault Rifle Light Assault Rifle Heavy Hammer [Rating: 8] Favorites ----------- Power Ion Engine Engine Ion Engine Propulsion Aluminum Leg Leg Aluminum Leg Utility Small Storage Unit Device Seismic Detector Storage Small Storage Unit Weapon Assault Rifle Ballistic Gun Assault Rifle Build | -11 -10 -10 ------- Run | Jun Mat Min Slots Evolved . | . . . Power . | . . . Propulsion . | . . . Utility . | . . . Weapon . | . . . Parts Attached 9 | 6 2 1 Power 1 | 1 . . Engine 1 | 1 . . Core . | . . . Reactor . | . . . Propulsion 2 | 2 . . Treads . | . . . Leg 2 | 2 . . Wheel . | . . . Hover . | . . . Flight . | . . . Utility 2 | 2 . . Device 1 | 1 . . Storage 1 | 1 . . Processor . | . . . Hackware . | . . . Protection . | . . . Artifact . | . . . Weapon 4 | 1 2 1 Energy Gun . | . . . Energy Cannon . | . . . Ballistic Gun 4 | 1 2 1 Ballistic Cannon . | . . . Launcher . | . . . Special Weapon . | . . . Impact Weapon . | . . . Slashing Weapon . | . . . Piercing Weapon . | . . . Special Melee Weapon . | . . . Unidentified Prototypes . | . . . Parts Lost 4 | . . 4 Power . | . . . Propulsion 1 | . . 1 Utility 1 | . . 1 Weapon 2 | . . 2 Highest Loss Streak 4 | . . 4 To Critical Strikes . | . . . Average Slot Usage (%) 85 | . 90 59 Engine 14 | . 14 14 Leg 22 | . 25 8 Device 13 | . 14 8 Storage 14 | . 14 14 Ballistic Gun 20 | . 21 14 Naked Turns . | . . . Heaviest Build 15 | 13 15 15 Greatest Support 20 | 20 20 10 Greatest Overweight (x) 3 | . 1 3 Average Overweight (x) . | . . 1 Largest Inventory Capacity 8 | 8 8 8 Average Capacity 7 | 7 8 8 Most Carried 8 | 4 8 8 Average Carried 4 | 2 5 7 Final Capacity 8 | 8 8 8 Final Carried 8 | 4 8 7 Class Distribution -------------------- 100% | Mutant Dominant Class ---------------- Mutant | -10/Materials Mutant | -10/Mines Resources | -11 -10 -10 ----------- Run | Jun Mat Min Matter Collected 328 | 300 28 . Remotely . | . . . Salvage Created 174 | 126 28 20 Parts 8 | 5 3 . Haulers Intercepted . | . . . Recyclers Shooed . | . . . Parts Field Recycled . | . . . Retrieved Matter . | . . . Parts Self-Destructed . | . . . Prevented . | . . . Kills | -11 -10 -10 ------- Run | Jun Mat Min Combat Hostiles Destroyed 3 | . 2 1 Guns 3 | . 2 1 Classes Destroyed 4 | 2 1 1 Tunneler 2 | 2 . . Recycler 1 | 1 . . Swarmer 2 | . 2 . Assembled 1 | . . 1 Best Kill Streak 3 | 3 2 1 Combat Bots Only 2 | . 2 1 Max Kills in Single Turn 1 | 1 1 1 Gunslinging . | . . . Exploded . | . . . Melee . | . . . Uniques/NPCs Destroyed . | . . . Combat | -11 -10 -10 -------- Run | Jun Mat Min Damage Taken 629 | . 69 560 Core 250 | . 22 228 Absorbed by Shields . | . . . Core Remaining (%) 100 | 100 . . Volleys Fired 28 | 16 6 6 Largest 2 | 1 1 2 Hottest 40 | 20 20 40 Shots Fired 31 | 16 6 9 Gun 31 | 16 6 9 Cannon . | . . . Launcher . | . . . Special . | . . . Kinetic 31 | 16 6 9 Thermal . | . . . Explosive . | . . . Electromagnetic . | . . . Robot Hit Streak 3 | 3 1 2 Robot Miss Streak 3 | 3 2 2 Penetration Max . | . . . Secondary Targets . | . . . Shots Hit Robots 16 | 10 2 4 Core Hits 8 | 3 2 3 Critical Kills . | . . . Critical Parts Destroyed . | . . . Critical Strikes . | . . . Melee Attacks . | . . . Impact . | . . . Slashing . | . . . Piercing . | . . . Sneak Attacks . | . . . Combat Hostiles . | . . . Follow-up Attacks . | . . . Damage Inflicted 231 | 129 29 73 Guns 216 | 129 25 62 Cannons . | . . . Explosions . | . . . Melee . | . . . Ramming 15 | . 4 11 Kinetic 216 | 129 25 62 Thermal . | . . . Explosive . | . . . Electromagnetic . | . . . Impact . | . . . Slashing . | . . . Piercing . | . . . Highest Corruption . | . . . Average Corruption . | . . . Corruption Purged . | . . . Corruption Blocked . | . . . Overload Shots . | . . . Overflow Damage . | . . . Projectiles . | . . . Explosions . | . . . Melee . | . . . Knockbacks . | . . . Impact . | . . . Kinetic . | . . . Secondary . | . . . Self-Inflicted Damage 5 | . . 5 Shots . | . . . Rammed 2 | . . 2 Targets Rammed 3 | . 1 2 Kicked 1 | . 1 . Crushed . | . . . Highest Temperature . | . . . Average Temperature . | . . . Received Heat Transfer . | . . . Siege Activations . | . . . Robots Corrupted . | . . . Combat Hostiles . | . . . Parts Fried . | . . . Impact Corruptions . | . . . Robots Melted . | . . . Combat Hostiles . | . . . Parts Melted . | . . . Heat Transferred . | . . . Parts Sabotaged . | . . . Parts Stolen . | . . . Parts Stripped . | . . . Power Chain Reactions . | . . . Missiles Intercepted . | . . . Alert | -11 -10 -10 ------- Run | Jun Mat Min Peak Influence 124 | 15 124 63 Initial 48 | . 9 48 Average 46 | 2 78 46 Maximum Alert Level . | . . . Low Security (%) 100 | 100 100 100 Level 1 . | . . . Level 2 . | . . . Level 3 . | . . . Level 4 . | . . . Level 5 . | . . . High Security . | . . . Max Security . | . . . Squads Dispatched . | . . . Investigation . | . . . Extermination . | . . . Reinforcement . | . . . Assault . | . . . Garrison . | . . . Intercept . | . . . Searches Triggered . | . . . Construction Impeded . | . . . Haulers Reinforced . | . . . Active Scanning Responses . | . . . Cargo Convoy Interrupts . | . . . Stealth | -11 -10 -10 --------- Run | Jun Mat Min Distress Signals . | . . . Communications Jammed . | . . . Distress Signals . | . . . Times Spotted 12 | . 6 6 Peak Tracking Total 5 | . 4 5 Tactical Retreats 2 | . 2 . Traps | -11 -10 -10 ------- Run | Jun Mat Min Traps Triggered 1 | . 1 . Indirectly . | . . . Trap Hack Attempts . | . . . Triggered . | . . . Disarmed . | . . . Reprogrammed . | . . . Reused . | . . . Traps Extracted . | . . . Installed . | . . . Triggered . | . . . Machines | -11 -10 -10 ---------- Run | Jun Mat Min Machines Disabled 1 | . . 1 Max in Single Turn 1 | . . 1 Machines Repaired . | . . . Machines Sabotaged . | . . . Overloaded Fab Kills . | . . . Hacking | -11 -10 -10 --------- Run | Jun Mat Min Machines Accessed 1 | . 1 . Terminals 1 | . 1 . Fabricators . | . . . Repair Stations . | . . . Recycling Units . | . . . Scanalyzers . | . . . Garrison Access . | . . . Total Hacks 1 | . 1 . Successful 1 | . 1 . Failed . | . . . Catastrophic . | . . . Database Lockouts . | . . . Manual . | . . . Terminals 1 | . 1 . Fabricators . | . . . Repair Stations . | . . . Recycling Units . | . . . Scanalyzers . | . . . Garrison Access . | . . . Terminal Hacks 1 | . 1 . Zone Layout 1 | . 1 . Fabricator Hacks . | . . . Repair Station Hacks . | . . . Recycling Unit Hacks . | . . . Scanalyzer . | . . . Garrison Access Hacks . | . . . Unauthorized Hacks . | . . . Terminals . | . . . Fabricators . | . . . Repair Stations . | . . . Recycling Units . | . . . Scanalyzers . | . . . Garrison Access . | . . . Data Cores Recovered . | . . . Used . | . . . Hacking Detections . | . . . Full Trace Events . | . . . Feedback Events . | . . . Feedback Blocked . | . . . Robot Schematics Acquired . | . . . Robots Built . | . . . Authchips . | . . . Time . | . . . Total Robot Build Rating . | . . . Part Schematics Acquired . | . . . Parts Built . | . . . Authchips . | . . . Time . | . . . Total Part Build Rating . | . . . Parts Repaired . | . . . Time . | . . . Parts Recycled . | . . . Recycled Matter . | . . . Retrieved Matter . | . . . Retrieved Components . | . . . Parts Scanalyzed . | . . . Part Schematics Acquired . | . . . Parts Damaged . | . . . Bothacking | -11 -10 -10 ------------ Run | Jun Mat Min Used RIF Installer . | . . . Robots Hacked . | . . . Non-combat . | . . . Combat . | . . . Robot Hacks Applied . | . . . Relay Couplers Released . | . . . Fabnet Peak Effective % . | . . . Robots Rewired . | . . . Allies Hacked . | . . . Hacks Repelled . | . . . Allies | -11 -10 -10 -------- Run | Jun Mat Min Total Allies . | . . . Largest Group . | . . . Highest-Rated Group . | . . . Highest-Rated Ally . | . . . Total Orders . | . . . Ally Attacks . | . . . Total Damage . | . . . Kills . | . . . Allies Corrupted . | . . . Allies Melted . | . . . Intel | -11 -10 -10 ------- Run | Jun Mat Min Robot Analysis Total . | . . . Derelict Logs Recovered . | . . . Drone Launches . | . . . Drone Recoveries . | . . . Exploration | -11 -10 -10 ------------- Run | Jun Mat Min Turns Passed 518 | 194 268 56 Spaces Moved 333 | 124 189 20 Core 16 | 7 . 9 Treads . | . . . Legs 317 | 117 189 11 Wheels . | . . . Hover . | . . . Flight . | . . . Fastest Speed 50 | 50 120 100 Average Speed 127 | 116 128 189 Slowest Speed 200 | 120 190 200 Overloaded Moves . | . . . Propulsion Burnouts . | . . . Robots Hopped . | . . . Cave-ins Triggered . | . . . Exploration Rate (%) 17 | 6 38 7 Regions Visited 2 Branch Regions 1 Pre-discovered Areas . | . . . Known Exits Taken . | . . . Unknown Exits Taken 2 | 1 1 . Scrap Searched . | . . . Spaces Dug . | . . . Terrain Destroyed . | . . . Melee . | . . . Projectile . | . . . AOE . | . . . Terrain Rammed . | . . . Walls Destroyed . | . . . Machines Disabled . | . . . Actions | -11 -10 -10 --------- Run | Jun Mat Min Total 397 | 158 210 29 Wait 3 | 3 . . Move 331 | 123 188 20 Hop . | . . . Pick Up 19 | 10 9 . Fast Attach . | . . . Attach 9 | 6 2 1 Detach . | . . . Swap . | . . . Drop 4 | . 4 . Fire 28 | 16 6 6 Melee . | . . . Ram 2 | . . 2 Kick 1 | . 1 . Crush . | . . . Escape Stasis . | . . . Rewire . | . . . Trap . | . . . Miscellaneous . | . . . Route ------- -11/Junkyard -10/Materials -10/Mines History --------- Turn | Location | Event 2 | -11/Junkyard | Met Revision 17 7 | -11/Junkyard | Discovered new exit (range 15) 195 | -11/Junkyard | Entered Materials 310 | -10/Materials | Build established: Mutant 454 | -10/Materials | Discovered new exit (range 6) 463 | -10/Materials | Entered Mines 464 | -10/Mines | Assembled infested the area 473 | -10/Mines | Met a Derelict bent on vengeance 511 | -10/Mines | Core integrity fell below 50% 517 | -10/Mines | Core integrity fell below 20% 519 | -10/Mines | Destroyed by as-96513 with Assembled Blade Last Messages --------------- 00477_ Core Extractor disabled. 00478_ K-01 Serf collects debris. 00479_ Assault Rifle severed. 00480_ as-36277 sneak attacks. 00480_ K-01 Serf destroyed. 00481_ Knocked back. 00487_ K-01 Serf collects debris. 00488_ as-97820 destroyed. 00491_ K-01 Serf collects debris. 00495_ K-01 Serf cleans the Core Extractor. 00498_ K-01 Serf collects debris. 00499_ Aluminum Leg destroyed. 00499_ Assault Rifle destroyed. 00499_ Seismic Detector destroyed. 00501_ K-01 Serf cleans the Core Extractor. 00502_ as-11585 sneak attacks. 00507_ Lgt. Assault Rifle destroyed. 00515_ Ion Engine severed. 00516_ Slammed into as-96513. [Achievement: Back For More] Map ----- +----------------------------------------------------+ | ?????????????????????????????????????????????????? | | ?????????????????????????????????????????????????? | | ?????????????????????????????????????????????????? | | ?????????????????????????????????????????????????? | | ?????????????????????????????????????????????????? | | ?????????????????????????????????????????????????? | | ?????????????????????????????????????????????????? | | ?????????????????????????????????????????????????? | | ?????????????????????????????????????????????????? | | ?????????????????????????????????????????????????? | | ?????????????????????????????????????????????????? | | ?????????????????????????????????????????????????? | | ?????????????????????????????????????????????????? | | ?????????????????????????????????????????????????? | | ?????????????????????????????????????????????????? | | ????????????????################?????????????????? | | ????????????????# #?????????????????? | | ????????????????#=%[% #?????????????????? | | ????????????????# = " """ """ #?????????????????? | | ??????????####### """ """ """ #?????????????????? | | ????????# """ """ """ #?????????????????? | | ??????????####### a #?????????????????? | | ????????????????# a""" """ #?????????????????? | | ????????????????# """a""" #?????????????????? | | ????????????????# """a""" #?????????????????? | | ????????????????# @ #?????????????????? | | ????????????????################?????????????????? | | ?????????????????????????????????????????????????? | | ?????????????????????????????????????????????????? | | ?????????????????????????????????????????????????? | | ?????????????????????????????????????????????????? | | ?????????????????????????????????????????????????? | | ?????????????????????????????????????????????????? | | ?????????????????????????????????????????????????? | | ?????????????????????????????????????????????????? | | ?????????????????????????????????????????????????? | | ?????????????????????????????????????????????????? | | ?????????????????????????????????????????????????? | | ?????????????????????????????????????????????????? | | ?????????????????????????????????????????????????? | | ?????????????????????????????????????????????????? | | ?????????????????????????????????????????????????? | | ?????????????????????????????????????????????????? | | ?????????????????????????????????????????????????? | | ?????????????????????????????????????????????????? | | ?????????????????????????????????????????????????? | | ?????????????????????????????????????????????????? | | ?????????????????????????????????????????????????? | | ?????????????????????????????????????????????????? | | ?????????????????????????????????????????????????? | +----------------------------------------------------+ Best States ------------- Heat Dissipation 25 Energy Generation 10 Energy Capacity 250 Matter Stores 294 Matter Capacity 300 Sight Range 16 Terrain Scan Density 10 Evasion (%) 55 Item Schematics ----------------- None Robot Schematics ------------------ None Fabricated ------------ Nothing Alien Tech Used ----------------- None Achievements -------------- Back For More Challenges ------------ None Game ------ Seed LauncherBarrageShearcannon Manual? 0 Play Time 00:06:51 Cumulative 19.7 hours Start 2023.04.03 @ 13:08:02 End 2023.04.03 @ 14:40:21 Sessions 1 Manual Loads 0 Difficulty Rogue Special Mode None Game No. 50 Rogue 50 Adventurer 0 Explorer 0 Win Type - Total 0 Types 0/0/0/0/0/0/0/0/0 Lore% 22 Gallery% 27 Achievement% 19 Wizard Run 0 Options --------- ASCII 0 Keyboard 0 Movement Mouse Keybinds 0 Fullscreen 1 Font 24/Smallcaps Map View 64x52 Tactical HUD 1 Map Filters NONE Filters NONE Steam 1 RUN: 3da70cde-9b66-4e7f-89cd-af00ce6d1c63